fUSD/lending_fUSD_20250416
["ID","MTS","AMOUNT","RATE_DAILY","PERIOD"]
[358168976,1744814936396,-500.0,0.00055342,120]
[358168977,1744814936425,-1984.48,0.00055342,120]
[358168978,1744814936454,-500.0,0.00055342,120]
[358168979,1744814936485,-500.0,0.00055342,120]
[358168980,1744814936519,-500.0,0.00055342,120]
[358168981,1744814936548,-1154.69,0.00055342,120]
[358168982,1744814936577,-1354.36,0.00055342,120]
[358168983,1744814936608,-500.0,0.00055342,120]
[358168984,1744814936637,-859.65,0.00055342,120]
[358168985,1744814936666,-500.0,0.00055342,120]
[358168986,1744814936695,-500.0,0.00055342,120]
[358168987,1744814936725,-500.0,0.00055342,120]
[358168988,1744814936754,-1165.59,0.00055342,120]
[358168989,1744814936784,-500.0,0.00055342,120]
[358168990,1744814936814,-500.0,0.00055342,120]
[358168991,1744814936845,-500.0,0.00055342,120]
[358168992,1744814936875,-179.32179295,0.00055342,120]
[358168993,1744814936905,-500.0,0.00055342,120]
[358168994,1744814936934,-1550.92,0.00055342,120]
[358168995,1744814936965,-500.0,0.00055342,120]
[358168996,1744814936993,-500.0,0.00055342,120]
[358168997,1744814937021,-500.0,0.00055342,120]
[358168998,1744814937048,-500.0,0.00055342,120]
[358168999,1744814937076,-500.0,0.00055342,120]
[358169000,1744814937106,-500.0,0.00055342,120]
[358169001,1744814937133,-500.0,0.00055342,120]
[358169002,1744814937161,-1327.19,0.00055342,35]
[358169003,1744814937188,-500.0,0.00055342,120]
[358169004,1744814937219,-500.0,0.00055342,30]
[358169005,1744814937249,-1239.55,0.00055342,120]
[358169006,1744814937278,-500.0,0.00055342,120]
[358169007,1744814937306,-1194.22,0.00055342,120]
[358169008,1744814937335,-500.0,0.00055342,120]
[358169009,1744814937361,-500.0,0.00055342,120]
[358169010,1744814937392,-648.1451098,0.00055342,120]
[358169011,1744814937420,-1406.48,0.00055342,120]
[358169012,1744814937446,-823.16,0.00055342,120]
[358169013,1744814937473,-500.0,0.00055342,120]
[358169014,1744814937502,-500.0,0.00055342,120]
[358169015,1744814937528,-610.03,0.00055342,120]
[358169016,1744814937556,-1446.67,0.00055342,120]
[358169017,1744814937585,-500.0,0.00055342,120]
[358169018,1744814937612,-500.0,0.00055342,120]
[358169019,1744814937640,-1272.59,0.00055342,120]
[358169020,1744814937667,-500.0,0.00055342,120]
[358169021,1744814937693,-1436.95,0.00055342,120]
[358169022,1744814937722,-500.0,0.00055342,120]
[358169023,1744814937749,-500.0,0.00055342,120]
[358169024,1744814937776,-500.0,0.00055342,120]
[358169025,1744814937805,-500.0,0.00055342,120]
[358169026,1744814937835,-500.0,0.00055342,120]
[358169027,1744814937862,-500.0,0.00055342,120]
[358169028,1744814937890,-500.0,0.00055342,120]
[358169029,1744814937918,-500.0,0.00055342,120]
[358169030,1744814937946,-500.0,0.00055342,120]
[358169031,1744814937973,-500.0,0.00055342,120]
[358169032,1744814938000,-500.0,0.00055342,120]
[358169033,1744814938027,-1065.65,0.00055342,120]
[358169034,1744814938066,-500.0,0.00055342,120]
[358169035,1744814938100,-500.0,0.00055342,120]
[358169036,1744814938130,-514.13480392,0.00055342,120]
[358169037,1744814938159,-500.0,0.00055342,120]
[358169038,1744814938391,-573.09542392,0.00055342,120]
[358169039,1744814938422,-500.0,0.00055342,120]
[358169040,1744814938453,-1106.45,0.00055342,120]
[358169041,1744814938484,-500.0,0.00055342,120]
[358169043,1744814938517,-500.0,0.00055342,120]
[358169045,1744814938546,-502.95613348,0.00055342,120]
[358169047,1744814938576,-500.0,0.00055342,120]
[358169048,1744814938612,-1467.04,0.00055342,120]
[358169049,1744814938642,-500.0,0.00055342,120]
[358169050,1744814938672,-500.0,0.00055342,120]
[358169051,1744814938702,-500.0,0.00055342,120]
[358169052,1744814938733,-500.0,0.00055342,120]
[358169053,1744814938764,-592.04313095,0.00055342,120]
[358169054,1744814938795,-556.41,0.00055342,120]
[358169055,1744814938827,-500.0,0.00055342,120]
[358169056,1744814938857,-500.0,0.00055342,120]
[358169057,1744814938886,-500.0,0.00055342,120]
[358169058,1744814938915,-500.0,0.00055342,120]
[358169059,1744814938945,-500.0,0.00055342,120]
[358169060,1744814938974,-1000.0,0.00055342,120]
[358169061,1744814939002,-500.0,0.00055342,120]
[358169062,1744814939032,-1902.3,0.00055342,120]
[358169063,1744814939061,-500.0,0.00055342,120]
[358169064,1744814939090,-1316.02,0.00055342,120]
[358169065,1744814939118,-500.0,0.00055342,120]
[358169066,1744814939148,-500.0,0.00055342,120]
[358169067,1744814939177,-1734.75,0.00055342,120]
[358169068,1744814939206,-500.0,0.00055342,120]
[358169069,1744814939235,-500.0,0.00055342,120]
[358169070,1744814939263,-500.0,0.00055342,120]
[358169071,1744814939297,-500.0,0.00055342,120]
[358169072,1744814939327,-500.0,0.00055342,120]
[358169073,1744814939358,-500.0,0.00055342,120]
[358169074,1744814939389,-500.0,0.00055342,120]
[358169075,1744814939419,-1956.07,0.00055342,120]
[358169076,1744814939450,-500.0,0.00055342,120]
[358169077,1744814939481,-500.0,0.00055342,120]
[358169078,1744814939512,-500.0,0.00055342,120]
[358169079,1744814939543,-500.0,0.00055342,120]
[358169080,1744814939573,-1151.52,0.00055342,120]
[358169081,1744814939603,-500.0,0.00055342,120]
[358169082,1744814939631,-1094.55,0.00055342,120]
[358169083,1744814939659,-500.0,0.00055342,120]
[358169084,1744814939687,-760.37,0.00055342,120]
[358169085,1744814939715,-500.0,0.00055342,120]
[358169086,1744814939745,-500.0,0.00055342,120]
[358169087,1744814939775,-500.0,0.00055342,120]
[358169088,1744814939803,-500.0,0.00055342,120]
[358169089,1744814939834,-1445.11,0.00055342,120]
[358169090,1744814939863,-901.79,0.00055342,30]
[358169091,1744814939892,-2153.97,0.00055342,120]
[358169092,1744814939922,-500.0,0.00055342,120]
[358169093,1744814939950,-500.0,0.00055342,120]
[358169094,1744814939984,-500.0,0.00055342,120]
[358169095,1744814940012,-548.67287559,0.00055342,120]
[358169096,1744814940041,-521.36608982,0.00055342,120]
[358169097,1744814940072,-520.81662068,0.00055342,120]
[358169098,1744814940102,-500.0,0.00055342,120]
[358169099,1744814940130,-246.22811771,0.00055342,120]
[358169100,1744814940158,-500.0,0.00055342,120]
[358169101,1744814940188,-500.0,0.00055342,120]
[358169102,1744814940219,-160.06728039,0.00055342,120]
[358169103,1744814940251,-500.0,0.00055342,120]
[358169104,1744814940284,-500.0,0.00055342,120]
[358169105,1744814940315,-511.70367974,0.00055342,120]
[358169106,1744814940349,-603.50079333,0.00055342,120]
[358169107,1744814940379,-500.0,0.00055342,120]
[358169108,1744814940409,-500.0,0.00055342,120]
[358169109,1744814940440,-500.0,0.00055342,120]
[358169110,1744814940473,-1207.85,0.00055342,120]
[358169111,1744814940508,-500.0,0.00055342,120]
[358169112,1744814940541,-500.0,0.00055342,120]
[358169113,1744814940574,-500.0,0.00055342,120]
[358169114,1744814940606,-363.49497173,0.00055342,120]
[358169115,1744814940634,-500.0,0.00055342,120]
[358169116,1744814940663,-500.0,0.00055342,120]
[358169117,1744814940691,-500.0,0.00055342,120]
[358169118,1744814940720,-500.0,0.00055342,120]
[358169119,1744814940749,-507.35148985,0.00055342,120]
[358169120,1744814940778,-574.20396626,0.00055342,120]
[358169121,1744814940806,-1000.0,0.00055342,120]
[358169122,1744814940835,-566.44487889,0.00055342,120]
[358169123,1744814940863,-500.0,0.00055342,120]
[358169124,1744814940891,-500.0,0.00055342,120]
[358169125,1744814940928,-500.0,0.00055342,120]
[358169126,1744814940961,-1092.84,0.00055342,120]
[358169127,1744814940990,-175.19222463,0.00055342,120]
[358169128,1744814941018,-500.0,0.00055342,120]
[358169129,1744814941048,-1572.69,0.00055342,120]
[358169130,1744814941077,-500.0,0.00055342,120]
[358169131,1744814941107,-500.0,0.00055342,120]
[358169132,1744814941136,-500.0,0.00055342,120]
[358169133,1744814941165,-500.0,0.00055342,120]
[358169134,1744814941194,-500.0,0.00055342,120]
[358169135,1744814941222,-500.0,0.00055342,30]
[358169136,1744814941252,-500.0,0.00055342,120]
[358169137,1744814941282,-500.0,0.00055342,120]
[358169138,1744814941311,-2192.06,0.00055342,120]
[358169139,1744814941341,-500.0,0.00055342,120]
[358169140,1744814941370,-500.0,0.00055342,120]
[358169141,1744814941399,-500.0,0.00055342,120]
[358169142,1744814941427,-500.0,0.00055342,120]
[358169143,1744814941457,-500.0,0.00055342,120]
[358169144,1744814941486,-500.0,0.00055342,120]
[358169145,1744814941719,-2358.99,0.00055342,120]
[358169146,1744814941752,-1214.24,0.00055342,120]
[358169147,1744814941782,-500.0,0.00055342,120]
[358169148,1744814941812,-1582.43,0.00055342,120]
[358169149,1744814941840,-500.0,0.00055342,120]
[358169150,1744814941870,-628.94679083,0.00055342,120]
[358169151,1744814941901,-500.0,0.00055342,120]
[358169152,1744814941931,-1147.0,0.00055342,120]
[358169153,1744814941961,-507.46,0.00055342,120]
[358169154,1744814941992,-500.0,0.00055342,120]
[358169155,1744814942022,-500.0,0.00055342,120]
[358169156,1744814942053,-500.0,0.00055342,120]
[358169157,1744814942082,-1450.41,0.00055342,120]
[358169158,1744814942111,-500.0,0.00055342,120]
[358169159,1744814942140,-500.0,0.00055342,120]
[358169160,1744814942172,-500.0,0.00055342,120]
[358169161,1744814942200,-500.0,0.00055342,120]
[358169162,1744814942228,-500.0,0.00055342,120]
[358169163,1744814942258,-821.79,0.00055342,120]
[358169164,1744814942287,-500.0,0.00055342,120]
[358169165,1744814942314,-521.21338678,0.00055342,120]
[358169166,1744814942343,-1508.18,0.00055342,120]
[358169167,1744814942371,-500.0,0.00055342,120]
[358169168,1744814942399,-500.0,0.00055342,120]
[358169169,1744814942426,-1198.95,0.00055342,120]
[358169170,1744814942452,-1287.91,0.00055342,120]
[358169171,1744814942478,-500.0,0.00055342,120]
[358169172,1744814942507,-500.0,0.00055342,120]
[358169173,1744814942533,-500.0,0.00055342,120]
[358169174,1744814942559,-566.46933422,0.00055342,120]
[358169175,1744814942588,-500.0,0.00055342,120]
[358169176,1744814942617,-500.0,0.00055342,120]
[358169177,1744814942645,-500.0,0.00055342,120]
[358169178,1744814942674,-535.92,0.00055342,120]
[358169179,1744814942702,-618.2156851,0.00055342,120]
[358169180,1744814942731,-500.0,0.00055342,120]
[358169181,1744814942760,-523.32172024,0.00055342,120]
[358169182,1744814942789,-500.0,0.00055342,120]
[358169183,1744814942819,-560.22388332,0.00055342,120]
[358169184,1744814942851,-500.0,0.00055342,120]
[358169185,1744814942881,-500.0,0.00055342,120]
[358169186,1744814942911,-1104.33,0.00055342,120]
[358169187,1744814942941,-844.87,0.00055342,120]
[358169188,1744814942970,-500.0,0.00055342,120]
[358169189,1744814942999,-500.0,0.00055342,120]
[358169190,1744814943031,-500.0,0.00055342,120]
[358169191,1744814943062,-500.0,0.00055342,120]
[358169192,1744814943094,-500.0,0.00055342,120]
[358169193,1744814943126,-500.0,0.00055342,120]
[358169194,1744814943157,-1142.18,0.00055342,120]
[358169195,1744814943187,-500.0,0.00055342,120]
[358169196,1744814943220,-184.49721295,0.00055342,120]
[358169197,1744814943250,-500.0,0.00055342,120]
[358169198,1744814943281,-500.0,0.00055342,120]
[358169199,1744814943312,-777.56,0.00055342,120]
[358169200,1744814943344,-500.0,0.00055342,120]
[358169201,1744814943376,-500.0,0.00055342,120]
[358169202,1744814943409,-500.0,0.00055342,120]
[358169203,1744814943441,-500.0,0.00055342,120]
[358169204,1744814943472,-500.0,0.00055342,120]
[358169205,1744814943506,-500.0,0.00055342,120]
[358169206,1744814943537,-500.0,0.00055342,120]
[358169207,1744814943570,-500.0,0.00055342,120]
[358169208,1744814943604,-516.52806653,0.00055342,120]
[358169209,1744814943635,-500.0,0.00055342,120]
[358169210,1744814943666,-505.9,0.00055342,120]
[358169211,1744814943697,-500.0,0.00055342,120]
[358169212,1744814943728,-500.0,0.00055342,120]
[358169213,1744814943760,-500.0,0.00055342,120]
[358169214,1744814943791,-500.0,0.00055342,120]
[358169215,1744814943822,-500.0,0.00055342,120]
[358169216,1744814943855,-500.0,0.00055342,120]
[358169217,1744814943885,-500.0,0.00055342,120]
[358169218,1744814943914,-569.61883217,0.00055342,120]
[358169219,1744814943943,-500.0,0.00055342,120]
[358169220,1744814943972,-500.0,0.00055342,120]
[358169221,1744814944001,-1834.3,0.00055342,120]
[358169222,1744814944031,-500.0,0.00055342,120]
[358169223,1744814944060,-500.0,0.00055342,120]
[358169224,1744814944090,-500.0,0.00055342,120]
[358169225,1744814944118,-500.0,0.00055342,120]
[358169226,1744814944149,-500.0,0.00055342,120]
[358169227,1744814944180,-500.0,0.00055342,120]
[358169228,1744814944211,-580.928929,0.00055342,120]
[358169229,1744814944241,-500.0,0.00055342,120]
[358169230,1744814944272,-500.0,0.00055342,120]
[358169231,1744814944303,-1336.53,0.00055342,120]
[358169232,1744814944334,-500.0,0.00055342,120]
[358169233,1744814944365,-500.0,0.00055342,120]
[358169234,1744814944396,-548.6,0.00055342,120]
[358169235,1744814944429,-500.0,0.00055342,120]
[358169236,1744814944462,-500.0,0.00055342,120]
[358169237,1744814944497,-500.0,0.00055342,120]
[358169238,1744814944531,-500.0,0.00055342,120]
[358169239,1744814944563,-500.0,0.00055342,120]
[358169240,1744814944596,-1257.13,0.00055342,120]
[358169241,1744814944628,-500.0,0.00055342,120]
[358169242,1744814944660,-504.21,0.00055342,120]
[358169243,1744814944691,-864.66,0.00055342,120]
[358169244,1744814944723,-500.0,0.00055342,120]
[358169245,1744814944754,-500.0,0.00055342,120]
[358169246,1744814944785,-500.0,0.00055342,120]
[358169247,1744814944816,-500.0,0.00055342,120]
[358169248,1744814944845,-542.88989876,0.00055342,120]
[358169249,1744814945046,-500.0,0.00055342,120]
[358169250,1744814945076,-500.0,0.00055342,120]
[358169251,1744814945105,-508.59664907,0.00055342,120]
[358169252,1744814945135,-500.0,0.00055342,120]
[358169253,1744814945164,-419.16264594,0.00055342,120]
[358169254,1744814945193,-500.0,0.00055342,120]
[358169255,1744814945223,-500.0,0.00055342,120]
[358169256,1744814945254,-500.0,0.00055342,120]
[358169257,1744814945285,-500.0,0.00055342,120]
[358169258,1744814945316,-500.0,0.00055342,120]
[358169259,1744814945347,-500.0,0.00055342,120]
[358169260,1744814945376,-500.0,0.00055342,120]
[358169261,1744814945406,-500.0,0.00055342,120]
[358169262,1744814945437,-1600.01,0.00055342,120]
[358169263,1744814945469,-500.0,0.00055342,120]
[358169264,1744814945503,-500.0,0.00055342,120]
[358169265,1744814945535,-500.0,0.00055342,120]
[358169266,1744814945567,-241.5395271,0.00055342,120]
[358169267,1744814945599,-500.0,0.00055342,120]
[358169268,1744814945630,-500.0,0.00055342,120]
[358169269,1744814945662,-500.0,0.00055342,120]
[358169270,1744814945695,-500.0,0.00055342,120]
[358169271,1744814945727,-500.0,0.00055342,120]
[358169272,1744814945756,-500.0,0.00055342,120]
[358169273,1744814945788,-500.0,0.00055342,120]
[358169274,1744814945821,-631.97,0.00055342,120]
[358169275,1744814945852,-154.32989305,0.00055342,120]
[358169276,1744814945883,-1119.49,0.00055342,120]
[358169277,1744814945912,-500.0,0.00055342,120]
[358169278,1744814945943,-500.0,0.00055342,120]
[358169279,1744814945972,-500.0,0.00055342,120]
[358169280,1744814946001,-500.0,0.00055342,120]
[358169281,1744814946032,-500.0,0.00055342,120]
[358169282,1744814946063,-500.0,0.00055342,120]
[358169283,1744814946094,-500.0,0.00055342,120]
[358169284,1744814946124,-1164.47,0.00055342,120]
[358169285,1744814946155,-1165.25,0.00055342,120]
[358169286,1744814946186,-500.0,0.00055342,120]
[358169287,1744814946215,-500.0,0.00055342,120]
[358169288,1744814946245,-579.74601704,0.00055342,120]
[358169289,1744814946276,-500.0,0.00055342,120]
[358169290,1744814946306,-500.0,0.00055342,120]
[358169291,1744814946336,-500.31878549,0.00055342,120]
[358169292,1744814946371,-1423.77,0.00055342,120]
[358169293,1744814946401,-191.73515835,0.00055342,120]
[358169294,1744814946430,-414.69052567,0.00055342,120]
[358169295,1744814946460,-500.0,0.00055342,120]
[358169296,1744814946490,-500.0,0.00055342,120]
[358169297,1744814946523,-500.0,0.00055342,120]
[358169298,1744814946553,-500.0,0.00055342,120]
[358169299,1744814946583,-500.0,0.00055342,120]
[358169300,1744814946613,-500.0,0.00055342,120]
[358169301,1744814946642,-500.0,0.00055342,120]
[358169302,1744814946671,-500.0,0.00055342,120]
[358169303,1744814946700,-500.0,0.00055342,120]
[358169304,1744814946730,-500.0,0.00055342,120]
[358169305,1744814946762,-500.0,0.00055342,120]
[358169306,1744814946792,-500.0,0.00055342,120]
[358169307,1744814946823,-2157.23,0.00055342,120]
[358169308,1744814946860,-500.0,0.00055342,120]
[358169309,1744814946891,-500.0,0.00055342,120]
[358169310,1744814946920,-2143.66,0.00055342,120]
[358169311,1744814946949,-500.0,0.00055342,120]
[358169312,1744814946978,-500.0,0.00055342,120]
[358169313,1744814947007,-2137.01,0.00055342,120]
[358169314,1744814947037,-1583.1,0.00055342,120]
[358169315,1744814947066,-508.90414664,0.00055342,120]
[358169316,1744814947095,-500.0,0.00055342,120]
[358169317,1744814947123,-500.0,0.00055342,120]
[358169318,1744814947152,-1217.27,0.00055342,120]
[358169319,1744814947180,-546.94659511,0.00055342,120]
[358169320,1744814947210,-500.0,0.00055342,120]
[358169321,1744814947244,-500.0,0.00055342,120]
[358169322,1744814947274,-500.0,0.00055342,120]
[358169323,1744814947305,-1362.34,0.00055342,120]
[358169324,1744814947338,-744.68,0.00055342,120]
[358169325,1744814947368,-500.0,0.00055342,120]
[358169326,1744814947397,-500.0,0.00055342,120]
[358169327,1744814947425,-552.84380306,0.00055342,120]
[358169328,1744814947455,-500.0,0.00055342,120]
[358169329,1744814947484,-500.0,0.00055342,120]
[358169330,1744814947521,-500.0,0.00055342,118]
[358169331,1744814947551,-1016.72,0.00055342,120]
[358169332,1744814947580,-500.0,0.00055342,120]
[358169333,1744814947609,-500.0,0.00055342,120]
[358169334,1744814947638,-500.0,0.00055342,120]
[358169335,1744814947666,-500.0,0.00055342,120]
[358169336,1744814947694,-500.0,0.00055342,120]
[358169337,1744814947723,-500.0,0.00055342,120]
[358169338,1744814947751,-500.0,0.00055342,120]
[358169339,1744814947780,-500.0,0.00055342,120]
[358169340,1744814947808,-421.85851221,0.00055342,120]
[358169341,1744814947838,-500.0,0.00055342,120]
[358169342,1744814947868,-500.0,0.00055342,120]
[358169343,1744814947895,-500.0,0.00055342,120]
[358169344,1744814947924,-995.69,0.00055342,120]
[358169345,1744814947952,-500.0,0.00055342,120]
[358169346,1744814947981,-500.0,0.00055342,120]
[358169347,1744814948010,-574.46,0.00055342,120]
[358169348,1744814948038,-500.0,0.00055342,120]
[358169349,1744814948066,-991.54,0.00055342,120]
[358169350,1744814948094,-500.0,0.00055342,120]
[358169351,1744814948121,-500.0,0.00055342,120]
[358169352,1744814948152,-500.0,0.00055342,120]
[358169353,1744814948347,-904.33,0.00055342,120]
[358169354,1744814948377,-155.025,0.00055386,120]
[358169355,1744814948406,-155.024,0.00055386,120]
[358169356,1744814948436,-155.024,0.00055386,120]
[358169357,1744814948465,-5000.0,0.0005555,32]
[358169358,1744814948496,-151.831469,0.00055616,120]
[358169359,1744814948529,-1243.06979,0.00055616,120]
[358169360,1744814948559,-164.189452,0.00055616,120]
[358169361,1744814948589,-500.0,0.00055616,120]
[358169362,1744814948617,-391.01992061,0.00055616,120]
[358169363,1744814948647,-500.0,0.00055616,120]
[358169364,1744814948677,-986.92,0.00055616,120]
[358169365,1744814948707,-2212.52,0.00055616,120]
[358169366,1744814948741,-500.0,0.00055616,120]
[358169367,1744814948772,-6585.42,0.00055616,90]
[358169368,1744814948802,-500.0,0.00055616,120]
[358169369,1744814948831,-448.81946687,0.00055616,120]
[358169370,1744814948861,-500.0,0.00055616,120]
[358169371,1744814948891,-1306.35,0.00055616,120]
[358169372,1744814948920,-500.0,0.00055616,120]
[358169373,1744814948949,-500.0,0.00055616,120]
[358169374,1744814948979,-500.0,0.00055616,120]
[358169375,1744814949008,-500.0,0.00055616,120]
[358169376,1744814949035,-500.0,0.00055616,120]
[358169377,1744814949064,-500.0,0.00055616,120]
[358169378,1744814949094,-1665.11,0.00055616,120]
[358169379,1744814949123,-500.0,0.00055616,120]
[358169380,1744814949152,-500.0,0.00055616,120]
[358169381,1744814949180,-500.0,0.00055616,120]
[358169382,1744814949209,-389.44978832,0.00055616,120]
[358169383,1744814949239,-500.0,0.00055616,120]
[358169384,1744814949269,-530.07686767,0.00055616,120]
[358169385,1744814949299,-503.39716645,0.00055616,120]
[358169386,1744814949328,-500.0,0.00055616,120]
[358169387,1744814949360,-500.0,0.00055616,120]
[358169388,1744814949389,-500.0,0.00055616,120]
[358169389,1744814949420,-500.0,0.00055616,120]
[358169390,1744814949450,-300.0,0.00055616,120]
[358169391,1744814949481,-500.0,0.00055616,120]
[358169392,1744814949513,-500.0,0.00055616,120]
[358169393,1744814949544,-500.0,0.00055616,120]
[358169394,1744814949575,-500.0,0.00055616,120]
[358169395,1744814949609,-1265.89,0.00055616,120]
[358169396,1744814949640,-500.0,0.00055616,120]
[358169397,1744814949671,-500.0,0.00055616,120]
[358169398,1744814949703,-500.86591759,0.00055616,120]
[358169399,1744814949733,-500.0,0.00055616,120]
[358169400,1744814949766,-500.0,0.00055616,120]
[358169401,1744814949795,-500.0,0.00055616,120]
[358169402,1744814949826,-500.0,0.00055616,120]
[358169403,1744814949856,-500.0,0.00055616,120]
[358169404,1744814949886,-500.0,0.00055616,120]
[358169405,1744814949916,-500.0,0.00055616,120]
[358169406,1744814949946,-591.84646323,0.00055616,120]
[358169407,1744814949977,-500.0,0.00055616,120]
[358169408,1744814950008,-500.0,0.00055616,120]
[358169409,1744814950039,-500.0,0.00055616,120]
[358169410,1744814950069,-500.0,0.00055616,120]
[358169411,1744814950099,-500.0,0.00055616,120]
[358169412,1744814950128,-500.0,0.00055616,120]
[358169413,1744814950159,-530.49858963,0.00055616,120]
[358169414,1744814950190,-500.0,0.00055616,120]
[358169415,1744814950221,-500.0,0.00055616,120]
[358169416,1744814950252,-500.0,0.00055616,120]
[358169417,1744814950284,-500.0,0.00055616,120]
[358169418,1744814950315,-500.0,0.00055616,120]
[358169419,1744814950344,-500.0,0.00055616,120]
[358169420,1744814950374,-508.6792499,0.00055616,120]
[358169421,1744814950403,-500.0,0.00055616,120]
[358169422,1744814950431,-500.0,0.00055616,120]
[358169423,1744814950461,-500.0,0.00055616,120]
[358169424,1744814950490,-500.0,0.00055616,120]
[358169425,1744814950520,-321.12172755,0.00055616,120]
[358169426,1744814950547,-500.0,0.00055616,120]
[358169427,1744814950577,-500.0,0.00055616,120]
[358169428,1744814950607,-422.86868737,0.00055616,120]
[358169429,1744814950635,-532.01788674,0.00055616,120]
[358169430,1744814950662,-500.0,0.00055616,120]
[358169431,1744814950691,-538.55404646,0.00055616,120]
[358169432,1744814950719,-500.0,0.00055616,120]
[358169433,1744814950748,-500.0,0.00055616,120]
[358169434,1744814950777,-558.26815928,0.00055616,120]
[358169435,1744814950807,-556.48982229,0.00055616,120]
[358169436,1744814950835,-500.0,0.00055616,120]
[358169437,1744814950864,-532.77895725,0.00055616,120]
[358169438,1744814950892,-531.04219392,0.00055616,120]
[358169439,1744814950919,-500.0,0.00055616,120]
[358169440,1744814950945,-500.0,0.00055616,120]
[358169441,1744814950974,-765.33,0.00055616,120]
[358169442,1744814951002,-500.0,0.00055616,120]
[358169443,1744814951029,-580.85569745,0.00055616,120]
[358169444,1744814951057,-500.0,0.00055616,120]
[358169445,1744814951085,-500.0,0.00055616,120]
[358169446,1744814951114,-500.0,0.00055616,120]
[358169447,1744814951143,-516.98218049,0.00055616,120]
[358169448,1744814951172,-500.0,0.00055616,120]
[358169449,1744814951200,-637.3,0.00055616,120]
[358169450,1744814951230,-500.0,0.00055616,120]
[358169451,1744814951260,-500.0,0.00055616,120]
[358169452,1744814951290,-500.0,0.00055616,120]
[358169453,1744814951319,-500.0,0.00055616,120]
[358169454,1744814951348,-500.0,0.00055616,120]
[358169455,1744814951376,-500.0,0.00055616,120]
[358169456,1744814951406,-500.0,0.00055616,120]
[358169457,1744814951605,-500.0,0.00055616,120]
[358169458,1744814951636,-500.0,0.00055616,120]
[358169459,1744814951667,-500.0,0.00055616,120]
[358169460,1744814951699,-500.0,0.00055616,120]
[358169461,1744814951729,-500.0,0.00055616,120]
[358169462,1744814951762,-500.0,0.00055616,120]
[358169463,1744814951794,-523.77459065,0.00055616,120]
[358169464,1744814951827,-500.0,0.00055616,120]
[358169465,1744814951862,-561.62018234,0.00055616,120]
[358169466,1744814951892,-500.0,0.00055616,120]
[358169467,1744814951922,-456.54727856,0.00055616,120]
[358169468,1744814951951,-500.0,0.00055616,120]
[358169469,1744814951981,-521.33859338,0.00055616,120]
[358169470,1744814952010,-500.0,0.00055616,120]
[358169471,1744814952040,-500.0,0.00055616,120]
[358169472,1744814952070,-500.0,0.00055616,120]
[358169474,1744814952099,-500.0,0.00055616,120]
[358169476,1744814952129,-500.0,0.00055616,120]
[358169478,1744814952160,-500.0,0.00055616,120]
[358169479,1744814952190,-500.0,0.00055616,120]
[358169480,1744814952221,-500.0,0.00055616,120]
[358169481,1744814952251,-500.0,0.00055616,120]